[Event "Titled Tuesday Blitz August 16 Early 2022"]
[White "Hansen, Eric"]
[Black "Namitbir Singh Walia"]
[WhiteFideId "2606771"]
[BlackFideId "35071068"]
[WhiteElo "2568"]
[BlackElo "1664"]
[Result "1-0"]
[Round "01"]
[TimeControl "180+1"]
[Date "2022.08.16"]
[WhiteClock "0:00:07"]
[BlackClock "0:00:11"]

1. e4 {[%clk 0:02:52]}  e5 {[%clk 0:02:59]} 2. Nf3 {[%clk 0:02:51]}  Nc6 {[%clk 0:02:59]} 3. Bb5 {[%clk 0:02:50]}  a6 {[%clk 0:02:59]} 4. Ba4 {[%clk 0:02:50]}  Nf6 {[%clk 0:03:00]} 5. O-O {[%clk 0:02:49]}  Be7 {[%clk 0:03:00]} 6. Re1 {[%clk 0:02:49]}  b5 {[%clk 0:03:01]} 7. Bb3 {[%clk 0:02:50]}  d6 {[%clk 0:03:02]} 8. c3 {[%clk 0:02:44]}  O-O {[%clk 0:03:01]} 9. h3 {[%clk 0:02:45]}  Nb8 {[%clk 0:03:01]} 10. d4 {[%clk 0:02:45]}  Nbd7 {[%clk 0:03:01]} 11. Nbd2 {[%clk 0:02:43]}  Bb7 {[%clk 0:03:00]} 12. Bc2 {[%clk 0:02:44]}  Re8 {[%clk 0:03:00]} 13. Nf1 {[%clk 0:02:44]}  Bf8 {[%clk 0:03:01]} 14. Ng3 {[%clk 0:02:44]}  g6 {[%clk 0:03:02]} 15. a4 {[%clk 0:02:44]}  Bg7 {[%clk 0:03:02]} 16. Bd3 {[%clk 0:02:45]}  exd4 {[%clk 0:03:02]} 17. cxd4 {[%clk 0:02:44]}  c5 {[%clk 0:03:02]} 18. d5 {[%clk 0:02:41]}  c4 {[%clk 0:03:01]} 19. Bc2 {[%clk 0:02:41]}  Nc5 {[%clk 0:03:01]} 20. Bd2 {[%clk 0:02:33]}  Nfd7 {[%clk 0:02:55]} 21. Bc3 {[%clk 0:02:31]}  Ne5 {[%clk 0:02:46]} 22. Nxe5 {[%clk 0:02:28]}  Bxe5 {[%clk 0:02:47]} 23. Qf3 {[%clk 0:02:19]}  Qd7 {[%clk 0:02:27]} 24. Bxe5 {[%clk 0:02:12]}  Rxe5 {[%clk 0:02:28]} 25. Qc3 {[%clk 0:02:09]}  Rae8 {[%clk 0:02:11]} 26. f4 {[%clk 0:02:08]}  R5e7 {[%clk 0:02:10]} 27. axb5 {[%clk 0:02:05]}  axb5 {[%clk 0:02:10]} 28. Rad1 {[%clk 0:01:27]}  Qc7 {[%clk 0:01:59]} 29. e5 {[%clk 0:01:26]}  Qb6 {[%clk 0:01:59]} 30. Kh2 {[%clk 0:01:21]}  dxe5 {[%clk 0:01:58]} 31. fxe5 {[%clk 0:01:20]}  Nd7 {[%clk 0:01:44]} 32. e6 {[%clk 0:01:04]}  fxe6 {[%clk 0:01:43]} 33. d6 {[%clk 0:00:49]}  Rf7 {[%clk 0:01:42]} 34. Be4 {[%clk 0:00:50]}  Nc5 {[%clk 0:01:31]} 35. Bxb7 {[%clk 0:00:48]}  Nxb7 {[%clk 0:01:32]} 36. Ne4 {[%clk 0:00:48]}  Rd8 {[%clk 0:01:19]} 37. Qe5 {[%clk 0:00:41]}  Qc6 {[%clk 0:00:43]} 38. Ng5 {[%clk 0:00:18]}  Nxd6 {[%clk 0:00:07]} 39. Nxf7 {[%clk 0:00:16]}  Nxf7 {[%clk 0:00:06]} 40. Rxd8+ {[%clk 0:00:16]}  Nxd8 {[%clk 0:00:07]} 41. Qb8 {[%clk 0:00:17]}  Qd7 {[%clk 0:00:07]} 42. Re5 {[%clk 0:00:14]}  Kg7 {[%clk 0:00:06]} 43. Rxb5 {[%clk 0:00:13]}  Nf7 {[%clk 0:00:06]} 44. Rb7 {[%clk 0:00:13]}  Qd5 {[%clk 0:00:05]} 45. Re7 {[%clk 0:00:09]}  e5 {[%clk 0:00:05]} 46. Qc7 {[%clk 0:00:09]}  e4 {[%clk 0:00:06]} 47. Qf4 {[%clk 0:00:09]}  Qf5 {[%clk 0:00:06]} 48. Qxe4 {[%clk 0:00:08]}  Qf6 {[%clk 0:00:06]} 49. Qe6 {[%clk 0:00:07]}  Qf4+ {[%clk 0:00:06]} 50. Kg1 {[%clk 0:00:03]}  Qd4+ {[%clk 0:00:07]} 51. Kh1 {[%clk 0:00:03]}  Qd1+ {[%clk 0:00:08]} 52. Qe1 {[%clk 0:00:04]}  Qd4 {[%clk 0:00:08]} 53. Qc3 {[%clk 0:00:04]}  Qxc3 {[%clk 0:00:08]} 54. bxc3 {[%clk 0:00:05]}  Kf6 {[%clk 0:00:09]} 55. Rc7 {[%clk 0:00:05]}  Ne5 {[%clk 0:00:10]} 56. Kg1 {[%clk 0:00:05]}  h5 {[%clk 0:00:10]} 57. Kf2 {[%clk 0:00:05]}  Kf5 {[%clk 0:00:10]} 58. Ke3 {[%clk 0:00:06]}  g5 {[%clk 0:00:11]} 59. Rc5 {[%clk 0:00:06]}  g4 {[%clk 0:00:10]} 60. Kd4 {[%clk 0:00:06]}  Kf4 {[%clk 0:00:10]} 61. Rxe5 {[%clk 0:00:07]}  Kg3 {[%clk 0:00:11]} 62. Rxh5 {[%clk 0:00:07]} 1-0


[Site "https://www.chess.com"]

[Event "Titled Tuesday Blitz August 16 Early 2022"]
[White "Harsh Suresh"]
[Black "Mendez Fortes, Eduardo Jesus"]
[WhiteFideId "45018464"]
[BlackFideId "3502376"]
[WhiteElo "2070"]
[BlackElo "2307"]
[Result "1-0"]
[Round "01"]
[TimeControl "180+2"]
[Date "2022.08.18"]
[WhiteClock "0:00:00"]
[BlackClock "0:00:00"]

1. e4 {[%clk 0:00:00]}  e5 {[%clk 0:00:00]} 2. Nf3 {[%clk 0:00:00]}  Nc6 {[%clk 0:00:00]} 3. Bb5 {[%clk 0:00:00]}  Nf6 {[%clk 0:00:00]} 4. O-O {[%clk 0:00:00]}  Nxe4 {[%clk 0:00:00]} 5. Re1 {[%clk 0:00:00]}  Nd6 {[%clk 0:00:00]} 6. Nxe5 {[%clk 0:00:00]}  Be7 {[%clk 0:00:00]} 7. Bf1 {[%clk 0:00:00]}  Nxe5 {[%clk 0:00:00]} 8. Rxe5 {[%clk 0:00:00]}  O-O {[%clk 0:00:00]} 9. Nc3 {[%clk 0:00:00]}  Bf6 {[%clk 0:00:00]} 10. Re1 {[%clk 0:00:00]}  Nf5 {[%clk 0:00:00]} 11. Nd5 {[%clk 0:00:00]}  c6 {[%clk 0:00:00]} 12. Nxf6+ {[%clk 0:00:00]}  Qxf6 {[%clk 0:00:00]} 13. c3 {[%clk 0:00:00]}  d5 {[%clk 0:00:00]} 14. d4 {[%clk 0:00:00]}  Nd6 {[%clk 0:00:00]} 15. g3 {[%clk 0:00:00]}  Bf5 {[%clk 0:00:00]} 16. Bf4 {[%clk 0:00:00]}  Rae8 {[%clk 0:00:00]} 17. Qa4 {[%clk 0:00:00]}  Nc8 {[%clk 0:00:00]} 18. h4 {[%clk 0:00:00]}  h6 {[%clk 0:00:00]} 19. Qb4 {[%clk 0:00:00]}  b6 {[%clk 0:00:00]} 20. a4 {[%clk 0:00:00]}  Be4 {[%clk 0:00:00]} 21. Bg2 {[%clk 0:00:00]}  Bxg2 {[%clk 0:00:00]} 22. Kxg2 {[%clk 0:00:00]}  Qf5 {[%clk 0:00:00]} 23. a5 {[%clk 0:00:00]}  g5 {[%clk 0:00:00]} 24. hxg5 {[%clk 0:00:00]}  hxg5 {[%clk 0:00:00]} 25. Bc7 {[%clk 0:00:00]}  Kg7 {[%clk 0:00:00]} 26. axb6 {[%clk 0:00:00]}  Rh8 {[%clk 0:00:00]} 27. Rxe8 {[%clk 0:00:00]}  Qh3+ {[%clk 0:00:00]} 28. Kf3 {[%clk 0:00:00]}  Rxe8 {[%clk 0:00:00]} 29. Be5+ {[%clk 0:00:00]}  f6 {[%clk 0:00:00]} 30. b7 {[%clk 0:00:00]}  fxe5 {[%clk 0:00:00]} 31. bxc8=Q {[%clk 0:00:00]}  Qxc8 {[%clk 0:00:00]} 32. Rxa7+ {[%clk 0:00:00]}  Kg6 {[%clk 0:00:00]} 33. Qd6+ {[%clk 0:00:00]}  Re6 {[%clk 0:00:00]} 34. Qd7 {[%clk 0:00:00]}  Qf8+ {[%clk 0:00:00]} 35. Kg2 {[%clk 0:00:00]}  Kf5 {[%clk 0:00:00]} 36. g4+ {[%clk 0:00:00]}  Ke4 {[%clk 0:00:00]} 37. Qxe6 {[%clk 0:00:00]}  Qf3+ {[%clk 0:00:00]} 38. Kg1 {[%clk 0:00:00]}  Qd1+ {[%clk 0:00:00]} 39. Kh2 {[%clk 0:00:00]}  Qf1 {[%clk 0:00:00]} 40. Qf5# {[%clk 0:00:00]} 1-0


[Site "https://www.chess.com"]

[Event "Titled Tuesday Blitz August 16 Early 2022"]
[White "Ianov, Viktor"]
[Black "Samadov, Read"]
[WhiteFideId "14102730"]
[BlackFideId "13417444"]
[WhiteElo "2152"]
[BlackElo "2084"]
[Result "0-1"]
[Round "01"]
[TimeControl "180+1"]
[Date "2022.08.16"]
[WhiteClock "0:01:23"]
[BlackClock "0:01:02"]

1. Nf3 {[%clk 0:02:53]}  Nf6 {[%clk 0:02:58]} 2. g3 {[%clk 0:02:52]}  d5 {[%clk 0:02:59]} 3. Bg2 {[%clk 0:02:52]}  c6 {[%clk 0:02:59]} 4. O-O {[%clk 0:02:52]}  Bf5 {[%clk 0:02:59]} 5. d3 {[%clk 0:02:52]}  e6 {[%clk 0:02:58]} 6. c4 {[%clk 0:02:51]}  Nbd7 {[%clk 0:02:57]} 7. Be3 {[%clk 0:02:51]}  Be7 {[%clk 0:02:56]} 8. Qb3 {[%clk 0:02:50]}  Qc8 {[%clk 0:02:53]} 9. cxd5 {[%clk 0:02:50]}  exd5 {[%clk 0:02:50]} 10. Rc1 {[%clk 0:02:50]}  O-O {[%clk 0:02:50]} 11. Nc3 {[%clk 0:02:50]}  Re8 {[%clk 0:02:34]} 12. Nd4 {[%clk 0:02:49]}  Nc5 {[%clk 0:02:30]} 13. Qd1 {[%clk 0:02:42]}  Bh3 {[%clk 0:02:27]} 14. b4 {[%clk 0:02:41]}  Bxg2 {[%clk 0:02:25]} 15. Kxg2 {[%clk 0:02:39]}  Ne6 {[%clk 0:02:25]} 16. Rab1 {[%clk 0:02:31]}  Nxd4 {[%clk 0:02:18]} 17. Bxd4 {[%clk 0:02:30]}  Qf5 {[%clk 0:02:18]} 18. b5 {[%clk 0:02:19]}  h5 {[%clk 0:02:11]} 19. bxc6 {[%clk 0:02:17]}  bxc6 {[%clk 0:02:11]} 20. Qa4 {[%clk 0:02:04]}  c5 {[%clk 0:01:57]} 21. Bxf6 {[%clk 0:02:02]}  Bxf6 {[%clk 0:01:57]} 22. e4 {[%clk 0:02:02]}  dxe4 {[%clk 0:01:57]} 23. Nxe4 {[%clk 0:01:59]}  Bd4 {[%clk 0:01:54]} 24. Rc2 {[%clk 0:01:54]}  h4 {[%clk 0:01:50]} 25. h3 {[%clk 0:01:35]}  hxg3 {[%clk 0:01:35]} 26. fxg3 {[%clk 0:01:35]}  Rxe4 {[%clk 0:01:25]} 27. Rf1 {[%clk 0:01:28]}  Qd5 {[%clk 0:01:01]} 28. dxe4 {[%clk 0:01:28]}  Qxe4+ {[%clk 0:01:02]} 29. Kh2 {[%clk 0:01:28]}  Bg1+ {[%clk 0:01:01]} 30. Rxg1 {[%clk 0:01:24]}  Qxa4 {[%clk 0:01:02]} 31. Rf2 {[%clk 0:01:23]}  c4 {[%clk 0:01:02]} 0-1


[Site "https://www.chess.com"]

[Event "Titled Tuesday Blitz August 16 Early 2022"]
[White "Iljin, Timofey"]
[Black "Bharath Subramaniyam H"]
[WhiteFideId "14110180"]
[BlackFideId "46634827"]
[WhiteElo "2404"]
[BlackElo "2346"]
[Result "1-0"]
[Round "01"]
[TimeControl "180+2"]
[Date "2022.08.18"]
[WhiteClock "0:00:00"]
[BlackClock "0:00:00"]

1. d4 {[%clk 0:00:00]}  d5 {[%clk 0:00:00]} 2. c4 {[%clk 0:00:00]}  e6 {[%clk 0:00:00]} 3. Nc3 {[%clk 0:00:00]}  c6 {[%clk 0:00:00]} 4. e4 {[%clk 0:00:00]}  dxe4 {[%clk 0:00:00]} 5. Nxe4 {[%clk 0:00:00]}  Bb4+ {[%clk 0:00:00]} 6. Bd2 {[%clk 0:00:00]}  Qxd4 {[%clk 0:00:00]} 7. Bxb4 {[%clk 0:00:00]}  Qxe4+ {[%clk 0:00:00]} 8. Be2 {[%clk 0:00:00]}  Na6 {[%clk 0:00:00]} 9. Bd6 {[%clk 0:00:00]}  Qxg2 {[%clk 0:00:00]} 10. Qd2 {[%clk 0:00:00]}  e5 {[%clk 0:00:00]} 11. Bf3 {[%clk 0:00:00]}  Qg6 {[%clk 0:00:00]} 12. Bxe5 {[%clk 0:00:00]}  Ne7 {[%clk 0:00:00]} 13. Ne2 {[%clk 0:00:00]}  f6 {[%clk 0:00:00]} 14. Ng3 {[%clk 0:00:00]}  O-O {[%clk 0:00:00]} 15. Bh5 {[%clk 0:00:00]}  Qg5 {[%clk 0:00:00]} 16. Qxg5 {[%clk 0:00:00]}  fxg5 {[%clk 0:00:00]} 17. O-O-O {[%clk 0:00:00]}  g6 {[%clk 0:00:00]} 18. Be2 {[%clk 0:00:00]}  Bf5 {[%clk 0:00:00]} 19. Bd6 {[%clk 0:00:00]}  Rf7 {[%clk 0:00:00]} 20. c5 {[%clk 0:00:00]}  Nb4 {[%clk 0:00:00]} 21. Bc4 {[%clk 0:00:00]}  Nbd5 {[%clk 0:00:00]} 22. Rhe1 {[%clk 0:00:00]}  Kg7 {[%clk 0:00:00]} 23. Be5+ {[%clk 0:00:00]}  Kf8 {[%clk 0:00:00]} 24. Bd6 {[%clk 0:00:00]}  Re8 {[%clk 0:00:00]} 25. Re5 {[%clk 0:00:00]}  Bd7 {[%clk 0:00:00]} 26. Rde1 {[%clk 0:00:00]}  h6 {[%clk 0:00:00]} 27. Ne4 {[%clk 0:00:00]}  Kg7 {[%clk 0:00:00]} 28. Nc3 {[%clk 0:00:00]}  Rxf2 {[%clk 0:00:00]} 29. Bxd5 {[%clk 0:00:00]}  Nxd5 {[%clk 0:00:00]} 30. Rxe8 {[%clk 0:00:00]}  Bxe8 {[%clk 0:00:00]} 31. Rxe8 {[%clk 0:00:00]}  Nb4 {[%clk 0:00:00]} 32. Re7+ {[%clk 0:00:00]}  Kg8 {[%clk 0:00:00]} 33. Rxb7 {[%clk 0:00:00]}  Rf1+ {[%clk 0:00:00]} 34. Kd2 {[%clk 0:00:00]}  Rf2+ {[%clk 0:00:00]} 35. Ke3 {[%clk 0:00:00]}  Rxb2 {[%clk 0:00:00]} 36. Ke4 {[%clk 0:00:00]}  a5 {[%clk 0:00:00]} 37. Ke5 {[%clk 0:00:00]}  Nd3+ {[%clk 0:00:00]} 38. Kf6 {[%clk 0:00:00]}  Rxb7 {[%clk 0:00:00]} 39. Ne4 {[%clk 0:00:00]}  Rf7+ {[%clk 0:00:00]} 40. Kxg6 {[%clk 0:00:00]}  Nf4+ {[%clk 0:00:00]} 41. Kxh6 {[%clk 0:00:00]}  Ne6 {[%clk 0:00:00]} 42. Kg6 {[%clk 0:00:00]}  Rf3 {[%clk 0:00:00]} 43. Nf6+ {[%clk 0:00:00]}  Kh8 {[%clk 0:00:00]} 44. Be5 {[%clk 0:00:00]}  Ng7 {[%clk 0:00:00]} 45. Nh5 {[%clk 0:00:00]}  Kg8 {[%clk 0:00:00]} 46. Bxg7 {[%clk 0:00:00]}  Ra3 {[%clk 0:00:00]} 47. Nf6# {[%clk 0:00:00]} 1-0


[Site "https://www.chess.com"]

[Event "Titled Tuesday Blitz August 16 Early 2022"]
[White "Issabayev, Dias"]
[Black "Bilych, Olexiy"]
[WhiteFideId "13703110"]
[BlackFideId "14156504"]
[WhiteElo "2291"]
[BlackElo "2157"]
[Result "0-1"]
[Round "01"]
[TimeControl "180+2"]
[Date "2022.08.18"]
[WhiteClock "0:00:00"]
[BlackClock "0:00:00"]

1. e4 {[%clk 0:00:00]}  e5 {[%clk 0:00:00]} 2. Nf3 {[%clk 0:00:00]}  Nc6 {[%clk 0:00:00]} 3. Nc3 {[%clk 0:00:00]}  Nf6 {[%clk 0:00:00]} 4. Bb5 {[%clk 0:00:00]}  Nd4 {[%clk 0:00:00]} 5. Bc4 {[%clk 0:00:00]}  Bc5 {[%clk 0:00:00]} 6. d3 {[%clk 0:00:00]}  c6 {[%clk 0:00:00]} 7. Nxd4 {[%clk 0:00:00]}  exd4 {[%clk 0:00:00]} 8. Ne2 {[%clk 0:00:00]}  d5 {[%clk 0:00:00]} 9. exd5 {[%clk 0:00:00]}  Nxd5 {[%clk 0:00:00]} 10. O-O {[%clk 0:00:00]}  O-O {[%clk 0:00:00]} 11. Nf4 {[%clk 0:00:00]}  Nxf4 {[%clk 0:00:00]} 12. Bxf4 {[%clk 0:00:00]}  Qf6 {[%clk 0:00:00]} 13. Qf3 {[%clk 0:00:00]}  g5 {[%clk 0:00:00]} 14. Bd2 {[%clk 0:00:00]}  Qxf3 {[%clk 0:00:00]} 15. gxf3 {[%clk 0:00:00]}  h6 {[%clk 0:00:00]} 16. f4 {[%clk 0:00:00]}  g4 {[%clk 0:00:00]} 17. Rfe1 {[%clk 0:00:00]}  Kg7 {[%clk 0:00:00]} 18. b4 {[%clk 0:00:00]}  Bd6 {[%clk 0:00:00]} 19. Re4 {[%clk 0:00:00]}  Bf5 {[%clk 0:00:00]} 20. Rxd4 {[%clk 0:00:00]}  Be7 {[%clk 0:00:00]} 21. Re1 {[%clk 0:00:00]}  Rfe8 {[%clk 0:00:00]} 22. Bb3 {[%clk 0:00:00]}  Bf6 {[%clk 0:00:00]} 23. Rd6 {[%clk 0:00:00]}  Rxe1+ {[%clk 0:00:00]} 24. Bxe1 {[%clk 0:00:00]}  Re8 {[%clk 0:00:00]} 25. Kf1 {[%clk 0:00:00]}  Bd8 {[%clk 0:00:00]} 26. Bc3+ {[%clk 0:00:00]}  f6 {[%clk 0:00:00]} 27. Bc4 {[%clk 0:00:00]}  Be7 {[%clk 0:00:00]} 28. Rd4 {[%clk 0:00:00]}  h5 {[%clk 0:00:00]} 29. a4 {[%clk 0:00:00]}  h4 {[%clk 0:00:00]} 30. b5 {[%clk 0:00:00]}  Bc5 {[%clk 0:00:00]} 31. bxc6 {[%clk 0:00:00]}  bxc6 {[%clk 0:00:00]} 32. a5 {[%clk 0:00:00]}  h3 {[%clk 0:00:00]} 33. Bb2 {[%clk 0:00:00]}  Rb8 {[%clk 0:00:00]} 34. Bb3 {[%clk 0:00:00]}  Bxd4 {[%clk 0:00:00]} 35. Bxd4 {[%clk 0:00:00]}  Bxd3+ {[%clk 0:00:00]} 36. Ke1 {[%clk 0:00:00]}  Ba6 {[%clk 0:00:00]} 37. Bxa7 {[%clk 0:00:00]}  Re8+ {[%clk 0:00:00]} 38. Be3 {[%clk 0:00:00]}  g3 {[%clk 0:00:00]} 0-1


[Site "https://www.chess.com"]

[Event "Titled Tuesday Blitz August 16 Early 2022"]
[White "Jaferian, Koosha"]
[Black "Estrada Nieto, Julian"]
[WhiteFideId "12507440"]
[BlackFideId "5101018"]
[WhiteElo "2030"]
[BlackElo "2252"]
[Result "1-0"]
[Round "01"]
[TimeControl "180+2"]
[Date "2022.08.18"]
[WhiteClock "0:00:00"]
[BlackClock "0:00:00"]

1. e4 {[%clk 0:00:00]}  e5 {[%clk 0:00:00]} 2. Nf3 {[%clk 0:00:00]}  Nc6 {[%clk 0:00:00]} 3. d4 {[%clk 0:00:00]}  exd4 {[%clk 0:00:00]} 4. Nxd4 {[%clk 0:00:00]}  Nf6 {[%clk 0:00:00]} 5. Nc3 {[%clk 0:00:00]}  Bb4 {[%clk 0:00:00]} 6. Nxc6 {[%clk 0:00:00]}  bxc6 {[%clk 0:00:00]} 7. Bd3 {[%clk 0:00:00]}  d5 {[%clk 0:00:00]} 8. Bd2 {[%clk 0:00:00]}  O-O {[%clk 0:00:00]} 9. O-O {[%clk 0:00:00]}  Rb8 {[%clk 0:00:00]} 10. exd5 {[%clk 0:00:00]}  cxd5 {[%clk 0:00:00]} 11. a3 {[%clk 0:00:00]}  Bd6 {[%clk 0:00:00]} 12. b4 {[%clk 0:00:00]}  Be5 {[%clk 0:00:00]} 13. Rb1 {[%clk 0:00:00]}  c6 {[%clk 0:00:00]} 14. Ne2 {[%clk 0:00:00]}  Bg4 {[%clk 0:00:00]} 15. h3 {[%clk 0:00:00]}  Bh5 {[%clk 0:00:00]} 16. Qe1 {[%clk 0:00:00]}  Re8 {[%clk 0:00:00]} 17. f4 {[%clk 0:00:00]}  Bd4+ {[%clk 0:00:00]} 18. Kh2 {[%clk 0:00:00]}  Bxe2 {[%clk 0:00:00]} 19. Bxe2 {[%clk 0:00:00]}  Ne4 {[%clk 0:00:00]} 20. c3 {[%clk 0:00:00]}  Nxc3 {[%clk 0:00:00]} 21. Bxc3 {[%clk 0:00:00]}  Bxc3 {[%clk 0:00:00]} 22. Qxc3 {[%clk 0:00:00]}  Rxe2 {[%clk 0:00:00]} 23. Qxc6 {[%clk 0:00:00]}  Rc8 {[%clk 0:00:00]} 24. Qa6 {[%clk 0:00:00]}  Rcc2 {[%clk 0:00:00]} 25. Rg1 {[%clk 0:00:00]}  g6 {[%clk 0:00:00]} 26. Qxa7 {[%clk 0:00:00]}  Qh4 {[%clk 0:00:00]} 27. Qa8+ {[%clk 0:00:00]}  Kg7 {[%clk 0:00:00]} 28. Qxd5 {[%clk 0:00:00]}  Qxf4+ {[%clk 0:00:00]} 29. Kh1 {[%clk 0:00:00]}  Qg3 {[%clk 0:00:00]} 30. Rb3 {[%clk 0:00:00]}  Qh4 {[%clk 0:00:00]} 31. Rf3 {[%clk 0:00:00]}  f5 {[%clk 0:00:00]} 32. b5 {[%clk 0:00:00]}  Rcd2 {[%clk 0:00:00]} 33. Qb3 {[%clk 0:00:00]}  Kh6 {[%clk 0:00:00]} 34. b6 {[%clk 0:00:00]}  Rb2 {[%clk 0:00:00]} 35. Qd3 {[%clk 0:00:00]}  Re1 {[%clk 0:00:00]} 36. Rxe1 {[%clk 0:00:00]}  Qxe1+ {[%clk 0:00:00]} 37. Rf1 {[%clk 0:00:00]}  Rxb6 {[%clk 0:00:00]} 38. Rxe1 {[%clk 0:00:00]} 1-0


[Site "https://www.chess.com"]

[Event "Titled Tuesday Blitz August 16 Early 2022"]
[White "Janaszak, Dawid"]
[Black "Lebedev, Artem S."]
[WhiteFideId "1119206"]
[BlackFideId "34272747"]
[WhiteElo "2165"]
[BlackElo "1699"]
[Result "1-0"]
[Round "01"]
[TimeControl "180+2"]
[Date "2022.08.18"]
[WhiteClock "0:00:00"]
[BlackClock "0:00:00"]

1. e4 {[%clk 0:00:00]}  e5 {[%clk 0:00:00]} 2. Nf3 {[%clk 0:00:00]}  Nc6 {[%clk 0:00:00]} 3. d4 {[%clk 0:00:00]}  exd4 {[%clk 0:00:00]} 4. Nxd4 {[%clk 0:00:00]}  Nf6 {[%clk 0:00:00]} 5. Nxc6 {[%clk 0:00:00]}  bxc6 {[%clk 0:00:00]} 6. e5 {[%clk 0:00:00]}  Qe7 {[%clk 0:00:00]} 7. Qe2 {[%clk 0:00:00]}  Nd5 {[%clk 0:00:00]} 8. c4 {[%clk 0:00:00]}  Ba6 {[%clk 0:00:00]} 9. h4 {[%clk 0:00:00]}  Qe6 {[%clk 0:00:00]} 10. cxd5 {[%clk 0:00:00]}  cxd5 {[%clk 0:00:00]} 11. Qxa6 {[%clk 0:00:00]}  Bb4+ {[%clk 0:00:00]} 12. Bd2 {[%clk 0:00:00]}  Qxe5+ {[%clk 0:00:00]} 13. Qe2 {[%clk 0:00:00]}  Bxd2+ {[%clk 0:00:00]} 14. Nxd2 {[%clk 0:00:00]}  Qe6 {[%clk 0:00:00]} 1-0


[Site "https://www.chess.com"]

[Event "Titled Tuesday Blitz August 16 Early 2022"]
[White "Jiganchine, Roman"]
[Black "Brodowski, Piotr"]
[WhiteFideId "2603667"]
[BlackFideId "1124480"]
[WhiteElo "2205"]
[BlackElo "2312"]
[Result "0-1"]
[Round "01"]
[TimeControl "180+2"]
[Date "2022.08.18"]
[WhiteClock "0:00:00"]
[BlackClock "0:00:00"]

1. Nf3 {[%clk 0:00:00]}  d5 {[%clk 0:00:00]} 2. e3 {[%clk 0:00:00]}  Nf6 {[%clk 0:00:00]} 3. c4 {[%clk 0:00:00]}  g6 {[%clk 0:00:00]} 4. Nc3 {[%clk 0:00:00]}  Bg7 {[%clk 0:00:00]} 5. cxd5 {[%clk 0:00:00]}  Nxd5 {[%clk 0:00:00]} 6. Bc4 {[%clk 0:00:00]}  Nb6 {[%clk 0:00:00]} 7. Bb3 {[%clk 0:00:00]}  O-O {[%clk 0:00:00]} 8. d4 {[%clk 0:00:00]}  N8d7 {[%clk 0:00:00]} 9. O-O {[%clk 0:00:00]}  c5 {[%clk 0:00:00]} 10. dxc5 {[%clk 0:00:00]}  Nxc5 {[%clk 0:00:00]} 11. Bc2 {[%clk 0:00:00]}  Bd7 {[%clk 0:00:00]} 12. Qe2 {[%clk 0:00:00]}  Rc8 {[%clk 0:00:00]} 13. Rd1 {[%clk 0:00:00]}  Qc7 {[%clk 0:00:00]} 14. Bd2 {[%clk 0:00:00]}  Be6 {[%clk 0:00:00]} 15. Rac1 {[%clk 0:00:00]}  Nc4 {[%clk 0:00:00]} 16. Nb5 {[%clk 0:00:00]}  Qb6 {[%clk 0:00:00]} 17. Nbd4 {[%clk 0:00:00]}  Nxb2 {[%clk 0:00:00]} 18. Nxe6 {[%clk 0:00:00]}  Qxe6 {[%clk 0:00:00]} 19. Re1 {[%clk 0:00:00]}  Qxa2 {[%clk 0:00:00]} 20. Bb4 {[%clk 0:00:00]}  b6 {[%clk 0:00:00]} 21. Ra1 {[%clk 0:00:00]}  Qd5 {[%clk 0:00:00]} 22. Rxa7 {[%clk 0:00:00]}  Ncd3 {[%clk 0:00:00]} 23. Bxd3 {[%clk 0:00:00]}  Nxd3 {[%clk 0:00:00]} 24. Rd1 {[%clk 0:00:00]}  Nxb4 {[%clk 0:00:00]} 25. Rxd5 {[%clk 0:00:00]}  Nxd5 {[%clk 0:00:00]} 26. g3 {[%clk 0:00:00]}  e6 {[%clk 0:00:00]} 27. h4 {[%clk 0:00:00]}  Rc1+ {[%clk 0:00:00]} 28. Kg2 {[%clk 0:00:00]}  Rfc8 {[%clk 0:00:00]} 29. Qa6 {[%clk 0:00:00]}  R1c2 {[%clk 0:00:00]} 30. Ra8 {[%clk 0:00:00]}  Bf8 {[%clk 0:00:00]} 31. Rxc8 {[%clk 0:00:00]}  Rxc8 {[%clk 0:00:00]} 32. Ne5 {[%clk 0:00:00]}  b5 {[%clk 0:00:00]} 33. Qxb5 {[%clk 0:00:00]}  Rc7 {[%clk 0:00:00]} 34. Qb8 {[%clk 0:00:00]}  Re7 {[%clk 0:00:00]} 35. h5 {[%clk 0:00:00]}  gxh5 {[%clk 0:00:00]} 36. Nf3 {[%clk 0:00:00]}  Nf6 {[%clk 0:00:00]} 37. Ne5 {[%clk 0:00:00]}  Kg7 {[%clk 0:00:00]} 38. Qb1 {[%clk 0:00:00]}  Rc7 {[%clk 0:00:00]} 39. Qb4 {[%clk 0:00:00]}  Bxb4 {[%clk 0:00:00]} 40. Nf3 {[%clk 0:00:00]}  Be7 {[%clk 0:00:00]} 41. Ne5 {[%clk 0:00:00]}  Kf8 {[%clk 0:00:00]} 42. Nd3 {[%clk 0:00:00]}  Ne8 {[%clk 0:00:00]} 43. Nf4 {[%clk 0:00:00]}  Ng7 {[%clk 0:00:00]} 44. Nxh5 {[%clk 0:00:00]}  Nxh5 {[%clk 0:00:00]} 45. g4 {[%clk 0:00:00]}  Ng7 {[%clk 0:00:00]} 46. Kf3 {[%clk 0:00:00]}  h6 {[%clk 0:00:00]} 47. g5 {[%clk 0:00:00]}  Bxg5 {[%clk 0:00:00]} 48. e4 {[%clk 0:00:00]}  Be7 {[%clk 0:00:00]} 49. Kg4 {[%clk 0:00:00]}  Ra7 {[%clk 0:00:00]} 50. f3 {[%clk 0:00:00]}  Ra6 {[%clk 0:00:00]} 0-1


[Site "https://www.chess.com"]